{"text_format":"3","workbook":"xlsx","n_sheets":11,"sheets":["Seite 1","Seite 2","Seite 3","Seite 4","Seite 5","Seite 6","Attribute","Drucken","Eintragung","Kanzleidaten","Stammdaten"],"not_rendered":{"images":3,"macros":1,"defined_names":251},"read":"whole","date_system":"1900"}

{"sheet":"Seite 1","index":0,"n_rows":83,"n_cols":64,"rows_kept":83,"merged":[[5,5,5,20],[5,55,5,73],[6,5,6,53],[8,5,8,14],[8,15,8,39],[10,5,10,53],[12,5,12,54],[13,5,13,54],[14,5,14,54],[16,5,16,20],[17,5,17,53],[18,5,18,7],[19,5,19,73],[20,5,20,7],[21,5,21,7],[22,5,22,73],[24,5,24,9],[24,15,24,21],[24,29,24,35],[25,5,25,11],[25,15,25,25],[25,29,25,73],[27,5,27,9],[27,17,27,18],[28,5,28,13],[28,17,28,73],[30,5,30,9],[30,17,30,22],[30,63,30,66],[31,5,31,13],[31,17,31,59],[31,63,31,73],[32,5,32,22],[33,5,33,7],[34,5,34,73],[36,5,36,9],[36,15,36,21],[36,29,36,35],[37,5,37,11],[37,15,37,25],[37,29,37,73],[39,5,39,9],[39,17,39,18],[40,5,40,13],[40,17,40,73],[42,5,42,23],[43,5,43,7],[44,5,44,13],[44,15,44,21],[44,33,44,37],[45,5,45,11],[45,15,45,29],[45,33,45,73],[47,5,47,7],[48,5,48,73],[50,5,50,11],[51,5,51,73],[53,5,53,73],[54,5,54,73],[56,5,56,73],[58,5,59,53],[60,5,60,28],[60,29,60,43],[62,5,62,20],[62,21,62,35],[62,41,62,58],[62,59,62,73],[64,15,64,16],[65,5,65,14],[65,15,65,73],[67,5,67,14],[67,15,67,47],[69,5,69,6],[69,7,69,38],[69,39,69,40],[69,41,69,58],[71,5,71,33],[71,59,72,73],[73,5,73,6],[73,7,73,38],[73,39,73,40],[73,41,73,58],[73,59,73,73],[82,5,82,29],[82,30,82,48],[82,49,82,73]]}
[]
[]
[]
[]
[]
[{"$nulls":5},"An das Finanzamt",{"$nulls":49},"Eingangsstempel oder -datum"]
[]
[]
[{"$nulls":5},"Steuernummer"]
[]
[{"$nulls":5},"Fragebogen zur steuerlichen Erfassung"]
[]
[{"$nulls":5},"Gründung eines Vereins oder einer anderen Körperschaft des privaten Rechts"]
[{"$nulls":5},"i. S. des § 1 Abs. 1 Nr. 4 und 5 Körperschaftsteuergesetz (KStG) oder"]
[{"$nulls":5},"Aufnahme einer wirtschaftlichen/unternehmerischen Tätigkeit"]
[]
[{"$nulls":5},"1. Allgemeine Angaben"]
[{"$nulls":5},"1.1 Angaben zur Körperschaft des privaten Rechts"]
[{"$nulls":5},"Name"]
[]
[{"$nulls":5},"Sitz"]
[{"$nulls":5},"Straße"]
[]
[]
[{"$nulls":5},"Hausnummer",{"$nulls":9},"Hausnummerzusatz",{"$nulls":13},"Adressergänzung"]
[]
[]
[{"$nulls":5},"Postleitzahl",{"$nulls":11},"Ort"]
[]
[]
[{"$nulls":5},"Postleitzahl",{"$nulls":11},"Ort (Postfach)",{"$nulls":45},"Postfach"]
[]
[{"$nulls":5},"ggf. abweichender Ort der Geschäftsleitung"]
[{"$nulls":5},"Straße"]
[]
[]
[{"$nulls":5},"Hausnummer",{"$nulls":9},"Hausnummerzusatz",{"$nulls":13},"Adressergänzung"]
[]
[]
[{"$nulls":5},"Postleitzahl",{"$nulls":11},"Ort"]
[]
[]
[{"$nulls":5},"Kommunikationsverbindungen"]
[{"$nulls":5},"Telefon"]
[{"$nulls":5},"Vorwahl international",{"$nulls":9},"Vorwahl national",{"$nulls":17},"Rufnummer"]
[]
[]
[{"$nulls":5},"E-Mail"]
[]
[]
[{"$nulls":5},"Internetadresse"]
[]
[]
[{"$nulls":5}," Art der ausgeübten wirtschaftlichen Tätigkeit(en) (genaue Bezeichnung des Gewerbezweiges)"]
[]
[]
[]
[]
[{"$nulls":5},"1.2 Satzung o. Ä. und Eintragung im Register / Verzeichnis"]
[]
[{"$nulls":5},"Stiftungsgeschäft o. Ä. vom"]
[]
[{"$nulls":5},"wurde beantragt am",{"$nulls":35},"sammlung erfolgte am"]
[]
[{"$nulls":15},"Ort"]
[{"$nulls":5},"Beim Amtsgericht"]
[]
[{"$nulls":5},"Registernummer"]
[]
[{"$nulls":7}," Eintragungsnachricht des Amtsgerichts ist beigefügt.",{"$nulls":33}," wird nachgereicht."]
[]
[{"$nulls":5},"Die Körperschaft hat ihre Tätigkeit aufgenommen"]
[]
[{"$nulls":7}," mit Gründung.",{"$nulls":33}," zu folgendem späteren Zeitpunkt"]
{"$rows_empty":8}
[{"$nulls":5},"       2016FsEVER101",{"$nulls":24},"- Juni 2016 -",{"$nulls":18},"2016FsEVER101        "]

{"sheet":"Seite 2","index":1,"n_rows":91,"n_cols":63,"rows_kept":91,"merged":[[2,3,2,73],[6,4,6,13],[6,14,6,38],[8,4,8,52],[9,4,9,6],[9,50,9,53],[10,4,10,46],[10,50,10,72],[12,4,12,6],[13,4,13,72],[15,4,15,8],[15,14,15,20],[15,28,15,34],[16,4,16,10],[16,14,16,24],[16,28,16,72],[18,4,18,8],[18,16,18,17],[19,4,19,12],[19,16,19,72],[21,4,21,8],[21,16,21,21],[21,62,21,65],[22,4,22,12],[22,16,22,58],[22,62,22,72],[24,4,24,9],[25,4,25,18],[25,25,25,37],[25,38,25,58],[26,4,26,22],[27,4,27,6],[28,4,28,12],[28,14,28,20],[28,32,28,36],[29,4,29,10],[29,14,29,28],[29,32,29,72],[31,4,31,12],[31,14,31,20],[31,32,31,36],[32,4,32,10],[32,14,32,28],[32,32,32,72],[34,4,34,6],[35,4,35,72],[37,4,37,10],[38,4,38,72],[41,4,41,22],[41,23,41,24],[41,25,41,30],[41,31,41,32],[41,33,41,40],[43,4,43,6],[44,4,44,72],[45,4,45,8],[46,4,46,6],[46,50,46,53],[47,4,47,46],[47,50,47,72],[49,4,49,6],[50,4,50,72],[52,4,52,8],[52,14,52,20],[52,28,52,34],[53,4,53,10],[53,14,53,24],[53,28,53,72],[55,4,55,8],[55,16,55,17],[56,4,56,12],[56,16,56,72],[58,4,58,8],[58,16,58,21],[58,62,58,65],[59,4,59,12],[59,16,59,58],[59,62,59,72],[60,4,60,22],[61,4,61,6],[62,4,62,12],[62,14,62,20],[62,32,62,36],[63,4,63,10],[63,14,63,28],[63,32,63,72],[65,4,65,6],[66,4,66,72],[68,4,68,52],[69,4,69,5],[69,6,69,72],[71,4,71,6],[72,4,72,72],[73,4,73,8],[74,4,74,6],[74,50,74,53],[75,4,75,46],[75,50,75,72],[77,4,77,6],[78,4,78,72],[80,4,80,8],[80,14,80,20],[80,28,80,34],[81,4,81,10],[81,14,81,24],[81,28,81,72],[83,4,83,8],[83,16,83,17],[84,4,84,12],[84,16,84,72],[86,4,86,8],[86,16,86,21],[86,62,86,65],[87,4,87,12],[87,16,87,58],[87,62,87,72],[90,4,90,28],[90,48,90,72]]}
[]
[]
[{"$nulls":3},""]
[]
[]
[]
[{"$nulls":4},"Steuernummer",{"$nulls":9},{"$f":"IF(ZSteuernummer=\"\",\"\",ZSteuernummer)","v":""}]
[]
[{"$nulls":4},"1.3 Gesetzlicher Vertreter (z. B. Vorstand)"]
[{"$nulls":4},"Name",{"$nulls":45},"Vorname"]
[]
[]
[{"$nulls":4},"Straße"]
[]
[]
[{"$nulls":4},"Hausnummer",{"$nulls":9},"Hausnummerzusatz",{"$nulls":13},"Adressergänzung"]
[]
[]
[{"$nulls":4},"Postleitzahl",{"$nulls":11},"Ort"]
[]
[]
[{"$nulls":4},"Postleitzahl",{"$nulls":11},"Ort (Postfach)",{"$nulls":45},"Postfach"]
[]
[]
[{"$nulls":4},"Geburtsdatum"]
[{"$nulls":25},"Identifikationsnummer"]
[{"$nulls":4},"Kommunikationsverbindungen"]
[{"$nulls":4},"Telefon"]
[{"$nulls":4},"Vorwahl international",{"$nulls":9},"Vorwahl national",{"$nulls":17},"Rufnummer"]
[]
[]
[{"$nulls":4},"Vorwahl international",{"$nulls":9},"Vorwahl national",{"$nulls":17},"Rufnummer"]
[]
[]
[{"$nulls":4},"E-Mail"]
[]
[]
[{"$nulls":4},"Internetadresse"]
[]
[]
[]
[{"$nulls":4},"1.4 Steuerliche Beratung",{"$nulls":20}," Nein",{"$nulls":7}," Ja"]
[]
[{"$nulls":4},"Firma"]
[]
[{"$nulls":4},"oder"]
[{"$nulls":4},"Name",{"$nulls":45},"Vorname"]
[]
[]
[{"$nulls":4},"Straße"]
[]
[]
[{"$nulls":4},"Hausnummer",{"$nulls":9},"Hausnummerzusatz",{"$nulls":13},"Adressergänzung"]
[]
[]
[{"$nulls":4},"Postleitzahl",{"$nulls":11},"Ort"]
[]
[]
[{"$nulls":4},"Postleitzahl",{"$nulls":11},"Ort (Postfach)",{"$nulls":45},"Postfach"]
[]
[{"$nulls":4},"Kommunikationsverbindungen"]
[{"$nulls":4},"Telefon"]
[{"$nulls":4},"Vorwahl international",{"$nulls":9},"Vorwahl national",{"$nulls":17},"Rufnummer"]
[]
[]
[{"$nulls":4},"E-Mail"]
[]
[]
[{"$nulls":4},"1.5 Empfangsbevollmächtigte(r) für alle Steuerarten"]
[{"$nulls":6}," Die unter Tz.1.4 angegebene steuerliche Beratung ist empfangsbevollmächtigt. Die gesonderte Vollmacht ist beigefügt."]
[]
[{"$nulls":4},"Firma"]
[]
[{"$nulls":4},"oder"]
[{"$nulls":4},"Name",{"$nulls":45},"Vorname"]
[]
[]
[{"$nulls":4},"Straße"]
[]
[]
[{"$nulls":4},"Hausnummer",{"$nulls":9},"Hausnummerzusatz",{"$nulls":13},"Adressergänzung"]
[]
[]
[{"$nulls":4},"Postleitzahl",{"$nulls":11},"Ort"]
[]
[]
[{"$nulls":4},"Postleitzahl",{"$nulls":11},"Ort (Postfach)",{"$nulls":45},"Postfach"]
[]
[]
[]
[{"$nulls":4},"       2016FsEVER102",{"$nulls":43},"2016FsEVER102        "]

{"sheet":"Seite 3","index":2,"n_rows":86,"n_cols":66,"rows_kept":86,"merged":[[2,4,2,74],[6,5,6,14],[6,15,6,39],[8,5,8,23],[9,5,9,7],[10,5,10,13],[10,15,10,21],[10,33,10,37],[11,5,11,11],[11,15,11,29],[11,33,11,73],[13,5,13,7],[14,5,14,73],[16,5,16,6],[16,7,16,49],[18,5,18,73],[19,5,19,73],[21,5,21,7],[22,5,22,47],[24,5,24,6],[25,5,25,25],[27,5,27,13],[28,5,28,73],[30,5,30,6],[30,7,30,49],[31,5,31,13],[32,5,32,43],[33,5,33,73],[34,5,34,73],[35,5,35,6],[35,7,35,49],[38,5,38,7],[38,8,38,9],[38,10,38,46],[39,10,39,46],[40,11,40,18],[41,11,41,73],[43,14,43,18],[43,47,43,52],[44,14,44,43],[44,47,44,71],[46,14,46,15],[47,5,47,13],[47,14,47,73],[49,5,49,13],[49,14,49,47],[51,5,51,20],[52,5,52,53],[53,5,53,73],[54,5,54,6],[54,7,54,12],[56,5,56,6],[56,7,56,13],[56,14,56,15],[56,16,56,54],[56,55,56,56],[56,57,56,73],[59,5,59,21],[60,5,60,73],[62,5,62,54],[62,55,62,56],[62,57,62,62],[62,63,62,64],[62,65,62,73],[64,5,64,66],[65,5,65,16],[65,17,65,31],[65,32,65,43],[67,5,67,53],[68,5,68,17],[68,18,68,19],[68,20,68,49],[70,18,70,19],[70,20,70,49],[73,5,73,53],[74,5,74,6],[74,7,74,12],[74,18,74,19],[74,20,74,26],[74,27,74,41],[74,42,74,46],[74,47,74,61],[76,5,76,25],[78,5,78,6],[78,7,78,25],[80,7,80,8],[80,9,80,36],[80,37,80,38],[80,39,80,51],[82,7,82,73],[83,7,83,73],[85,5,85,29],[85,49,85,73]]}
[]
[]
[{"$nulls":4},""]
[]
[]
[]
[{"$nulls":5},"Steuernummer",{"$nulls":9},{"$f":"IF(ZSteuernummer=\"\",\"\",ZSteuernummer)","v":""}]
[]
[{"$nulls":5},"Kommunikationsverbindungen"]
[{"$nulls":5},"Telefon"]
[{"$nulls":5},"Vorwahl international",{"$nulls":9},"Vorwahl national",{"$nulls":17},"Rufnummer"]
[]
[]
[{"$nulls":5},"E-Mail"]
[]
[]
[{"$nulls":7}," Die gesonderte Vollmacht ist beigefügt."]
[]
[{"$nulls":5},"1.6 Bankverbindung/SEPA-Lastschriftverfahren"]
[{"$nulls":5},"Alle Steuererstattungen sollen an folgende Bankverbindung erfolgen:"]
[]
[{"$nulls":5},"IBAN"]
[]
[]
[{"$nulls":5},"BIC"]
[]
[]
[{"$nulls":5},"Geldinstitut (Name, Ort)"]
[]
[]
[{"$nulls":7}," lt. Zeile 3"]
[{"$nulls":5},"oder:"]
[{"$nulls":5},"ggf. abweichende(r) Kontoinhaber(in), sofern das Konto nicht auf den Namen der Körperschaft lautet"]
[]
[{"$nulls":5},"Möchten Sie am SEPA-Lastschriftverfahren, dem für beide Seiten einfachsten Zahlungsweg, teilnehmen?"]
[{"$nulls":7}," Ja. Das ausgefüllte SEPA-Lastschriftmandat ist beigefügt."]
[]
[]
[{"$nulls":5},"1.7",{"$nulls":4}," Die Gesellschaft gehört zu einem Konzern."]
[{"$nulls":10}," Angaben zum herrschenden Unternehmen"]
[{"$nulls":11},"Name des Konzerns"]
[]
[]
[{"$nulls":14},"Finanzamt",{"$nulls":32},"Steuernummer"]
[]
[]
[{"$nulls":14},"Ort"]
[{"$nulls":5},"Beim Amtsgericht"]
[]
[{"$nulls":5},"Registernummer"]
[]
[{"$nulls":5},"2. Steuerliche Angaben"]
[{"$nulls":5},"2.1 Befreiung von der Körperschaftsteuer"]
[{"$nulls":5},"Die Körperschaft strebt die Befreiung von der Körperschaftsteuer nach § 5 Abs. 1 KStG an."]
[{"$nulls":7}," Nein"]
[]
[{"$nulls":7}," Ja, nach",{"$nulls":8}," kirchlicher Zwecke; die Satzung enthält die in der Mustersatzung nach",{"$nulls":40}," (Bitte auf gesondertem Blatt"]
[]
[]
[{"$nulls":5},"Die Körperschaft verfolgt folgenden Zweck:"]
[]
[]
[{"$nulls":5},"zu erteilen.",{"$nulls":51}," Ja",{"$nulls":7}," Nein"]
[]
[{"$nulls":5},"2.2 Unterhält die Körperschaft einen wirtschaftlichen Geschäftsbetrieb lt. Zeilen 14/15?"]
[{"$nulls":5},"Beginn der Tätigkeit"]
[]
[{"$nulls":5},"2.3 Art der Gewinnermittlung/Eröffnungsbilanz/Wirtschaftsjahr"]
[{"$nulls":5},"Gewinnermittlungsart",{"$nulls":14}," Einnahmenüberschussrechnung"]
[]
[{"$nulls":20}," Vermögensvergleich (Bilanz)"]
[]
[]
[{"$nulls":5},"Liegt ein vom Kalenderjahr abweichendes Wirtschaftsjahr vor?"]
[{"$nulls":7}," Nein",{"$nulls":12}," Ja, vom",{"$nulls":21},"bis"]
[]
[{"$nulls":5},"3. Zusatzangaben Organschaft"]
[]
[{"$nulls":7}," Die Körperschaft ist Organträger"]
[]
[{"$nulls":9}," körperschaftsteuerlich und gewerbesteuerlich.",{"$nulls":29}," umsatzsteuerlich."]
[]
[{"$nulls":7},"(Bitte Liste der Organgesellschaften unter Angabe der Steuernummer und - soweit erteilt - der Umsatzsteuer-Identifikationsnummer"]
[{"$nulls":7},"(USt-IdNr.) auf gesondertem Blatt beifügen.)"]
[]
[{"$nulls":5},"       2016FsEVER103",{"$nulls":43},"2016FsEVER103        "]

{"sheet":"Seite 4","index":3,"n_rows":92,"n_cols":70,"rows_kept":92,"merged":[[2,3,2,73],[6,4,6,13],[6,14,6,38],[8,4,8,54],[10,4,11,30],[10,32,10,50],[11,32,11,50],[12,32,12,50],[12,54,12,72],[13,32,13,50],[13,54,13,72],[14,4,14,15],[14,32,14,50],[14,54,14,72],[16,4,16,52],[17,4,17,72],[18,4,18,15],[19,36,19,52],[20,4,20,34],[20,36,20,52],[21,4,21,34],[21,36,21,52],[21,56,21,72],[22,36,22,52],[22,56,22,72],[23,4,23,35],[23,36,23,52],[23,56,23,72],[25,4,25,35],[25,36,25,52],[25,56,25,72],[27,4,27,35],[27,36,27,52],[27,56,27,72],[29,4,29,35],[29,36,29,52],[29,56,29,72],[31,4,31,44],[33,4,33,13],[33,14,33,19],[33,20,33,26],[33,33,33,43],[33,44,33,50],[36,4,36,21],[36,22,36,36],[39,4,39,21],[39,22,39,23],[39,24,39,37],[39,38,39,39],[39,40,39,53],[39,54,39,55],[39,56,39,72],[41,4,41,72],[42,4,42,8],[43,4,43,72],[45,4,45,6],[46,4,46,72],[48,4,48,8],[48,14,48,20],[48,28,48,34],[49,4,49,10],[49,14,49,24],[49,28,49,72],[51,4,51,8],[51,16,51,17],[52,4,52,12],[52,16,52,72],[54,4,54,46],[55,4,56,19],[56,20,56,38],[56,44,56,62],[57,4,57,19],[57,20,57,38],[57,44,57,62],[58,20,58,38],[58,44,58,62],[60,4,60,52],[61,4,61,63],[61,64,61,65],[61,66,61,72],[63,12,63,41],[64,4,64,5],[64,6,64,11],[64,12,64,72],[66,12,66,72],[68,12,68,19],[68,20,68,72],[70,12,70,19],[70,20,70,44],[72,4,72,52],[73,4,73,5],[73,6,73,72],[75,6,75,72],[77,6,77,72],[79,4,79,5],[79,6,79,72],[81,6,81,72],[84,4,84,52],[85,4,85,63],[86,20,86,32],[87,4,87,5],[87,6,87,13],[87,14,87,15],[87,16,87,19],[87,20,87,58],[87,59,87,63],[87,64,87,68],[87,69,87,72],[89,20,89,58],[89,59,89,63],[89,64,89,68],[89,69,89,72],[91,4,91,28],[91,48,91,72]]}
[]
[]
[{"$nulls":3},""]
[]
[]
[]
[{"$nulls":4},"Steuernummer",{"$nulls":9},{"$f":"IF(ZSteuernummer=\"\",\"\",ZSteuernummer)","v":""}]
[]
[{"$nulls":4},"4. Festsetzung von Vorauszahlungen (Körperschaftsteuer, Gewerbesteuer)"]
[]
[{"$nulls":4},"4.1 Summe der Bruttoeinnahmen",{"$nulls":27},"für das Jahr der Gründung/"]
[{"$nulls":32},"Aufnahme"]
[{"$nulls":32},"der wirtschaftlichen Tätigkeit",{"$nulls":21},"im Folgejahr"]
[{"$nulls":32},"EUR",{"$nulls":21},"EUR"]
[{"$nulls":4},"(geschätzt)"]
[]
[{"$nulls":4},"4.2 Angaben zur Festsetzung von Vorauszahlungen"]
[{"$nulls":4},"Bei Körperschaften, deren Bruttoeinnahmen aus wirtschaftlichem Geschäftsbetrieb die Besteuerungsgrenze von 35.000 EUR übersteigen"]
[{"$nulls":4},"(s. Tz 4.1):"]
[{"$nulls":36},"für das Jahr der Gründung/"]
[{"$nulls":4},"Angaben zur Festsetzung der Vorauszahlungen",{"$nulls":31},"Aufnahme"]
[{"$nulls":4},"(geschätzt)",{"$nulls":31},"der wirtschaftlichen Tätigkeit",{"$nulls":19},"im Folgejahr"]
[{"$nulls":36},"EUR",{"$nulls":19},"EUR"]
[{"$nulls":4},"Jahresüberschuss/Steuerbilanzgewinn"]
[]
[{"$nulls":4},"Zu versteuerndes Einkommen"]
[]
[{"$nulls":4},"Steueranrechnungsbeträge"]
[]
[{"$nulls":4},"Gewerbeertrag"]
[]
[{"$nulls":4},"5. Angaben zur Anmeldung und Abführung der Lohnsteuer"]
[]
[{"$nulls":4},"Arbeitnehmer",{"$nulls":9},"Insgesamt",{"$nulls":18},"Beschäftigte"]
[]
[]
[{"$nulls":4},"Beginn der Lohnzahlungen"]
[]
[]
[{"$nulls":4},"(voraussichtliche Lohnsteuer",{"$nulls":19}," (mehr als 4.000 EUR)",{"$nulls":15}," (mehr als 1.080 EUR)",{"$nulls":15}," (nicht mehr als 1.080 EUR)"]
[]
[{"$nulls":4},"Die für die Lohnberechnung maßgebenden Lohnbestandteile werden zusammengefasst im Betrieb/Betriebsteil:"]
[{"$nulls":4},"Bezeichnung"]
[]
[]
[{"$nulls":4},"Straße"]
[]
[]
[{"$nulls":4},"Hausnummer",{"$nulls":9},"Hausnummerzusatz",{"$nulls":13},"Adressergänzung"]
[]
[]
[{"$nulls":4},"Postleitzahl",{"$nulls":11},"Ort"]
[]
[]
[{"$nulls":4},"6. Angaben zur Anmeldung und Abführung der Umsatzsteuer"]
[{"$nulls":4},"6.1 Summe der Umsätze"]
[{"$nulls":20},"im Jahr der Betriebseröffnung",{"$nulls":23},"im Folgejahr"]
[{"$nulls":4},"      (geschätzt)",{"$nulls":15},"EUR",{"$nulls":23},"EUR"]
[]
[]
[{"$nulls":4},"6.2 Geschäftsveräußerung im Ganzen (§ 1 Abs. 1a Umsatzsteuergesetz (UStG))"]
[{"$nulls":4},"Es wurde ein Unternehmen oder ein in der Gliederung eines Unternehmens gesondert geführter Betrieb erworben:",{"$nulls":61},"  Nein"]
[]
[{"$nulls":12},"Art des Unternehmens/Bezeichnung der Personen- bzw. Kapitalgesellschaft"]
[{"$nulls":6}," Ja"]
[]
[]
[]
[{"$nulls":12},"Finanzamt"]
[]
[{"$nulls":12},"Steuernummer"]
[]
[{"$nulls":4},"6.3 Kleinunternehmer-Regelung"]
[{"$nulls":6}," Es wird die Kleinunternehmer-Regelung (§ 19 Abs. 1 UStG) in Anspruch genommen."]
[]
[{"$nulls":6}," In Rechnungen wird keine Umsatzsteuer gesondert ausgewiesen und es kann kein Vorsteuerabzug geltend gemacht werden."]
[]
[{"$nulls":6}," Hinweis: Angaben zu Tz. 6.6 sind nicht erforderlich; Umsatzsteuer-Voranmeldungen sind grundsätzlich nicht zu übermitteln."]
[]
[{"$nulls":6}," Es wird auf die Anwendung der Kleinunternehmer-Regelung verzichtet."]
[]
[{"$nulls":6}," Die Besteuerung erfolgt nach den allgemeinen Vorschriften des Umsatzsteuergesetzes für mindestens fünf Kalenderjahre"]
[]
[]
[{"$nulls":4},"6.4 Steuerbefreiung"]
[{"$nulls":4},"Es werden ganz oder teilweise steuerfreie Umsätze gem. § 4 UStG ausgeführt:"]
[{"$nulls":20},"Art des Umsatzes/der Tätigkeit"]
[{"$nulls":6}," Nein",{"$nulls":9}," Ja",{"$nulls":42},"(§ 4 Nr.",{"$nulls":9}," UStG)"]
[]
[{"$nulls":59},"(§ 4 Nr.",{"$nulls":9}," UStG)"]
[]
[{"$nulls":4},"       2016FsEVER104",{"$nulls":43},"2016FsEVER104        "]

{"sheet":"Seite 5","index":4,"n_rows":84,"n_cols":71,"rows_kept":84,"merged":[[2,4,2,74],[6,5,6,14],[6,15,6,39],[8,5,8,53],[9,5,9,73],[10,21,10,33],[11,5,11,6],[11,7,11,14],[11,15,11,16],[11,17,11,20],[11,21,11,55],[11,56,11,64],[11,65,11,69],[11,70,11,73],[13,5,13,53],[15,5,15,26],[15,27,15,28],[15,29,15,73],[17,27,17,28],[17,29,17,73],[19,29,19,30],[19,31,19,73],[21,29,21,30],[21,31,21,73],[23,5,23,53],[24,5,24,54],[24,55,24,56],[24,57,24,62],[24,63,24,64],[24,65,24,73],[26,5,26,53],[27,5,27,6],[27,7,27,73],[29,7,29,73],[31,7,31,73],[32,7,32,39],[33,7,33,39],[35,7,35,39],[36,7,36,8],[36,9,36,73],[38,9,38,10],[38,11,38,73],[40,9,40,10],[40,11,40,73],[42,7,42,8],[42,9,42,73],[44,5,44,6],[44,7,44,73],[46,7,46,12],[46,13,46,33],[46,39,46,48],[46,49,46,63],[46,64,46,73],[48,5,48,73],[50,5,50,6],[50,7,50,73],[52,7,52,8],[52,9,52,73],[54,7,54,8],[54,9,54,73],[56,5,56,73],[58,5,58,53],[59,5,59,73],[60,5,60,73],[61,5,61,73],[63,5,63,6],[63,7,63,73],[66,5,66,57],[66,58,66,73],[68,5,68,73],[69,5,69,73],[71,5,71,6],[71,7,71,73],[74,5,74,10],[74,11,74,73],[80,5,80,32],[81,5,81,31],[81,37,81,73],[82,37,82,73],[83,5,83,29],[83,49,83,73]]}
[]
[]
[{"$nulls":4},""]
[]
[]
[]
[{"$nulls":5},"Steuernummer",{"$nulls":9},{"$f":"IF(ZSteuernummer=\"\",\"\",ZSteuernummer)","v":""}]
[]
[{"$nulls":5},"6.5 Steuersatz"]
[{"$nulls":5},"Es werden Umsätze ausgeführt, die ganz oder teilweise dem ermäßigten Steuersatz gem. § 12 Abs. 2 UStG unterliegen:"]
[{"$nulls":21},"Art des Umsatzes/der Tätigkeit"]
[{"$nulls":7}," Nein",{"$nulls":9}," Ja",{"$nulls":38},"(§ 12 Abs. 2 Nr.",{"$nulls":13}," UStG)"]
[]
[{"$nulls":5},"6.6 Soll-/Istversteuerung der Entgelte"]
[]
[{"$nulls":5},"Die Umsatzsteuer wird berechnet nach",{"$nulls":23}," vereinbarten Entgelten (Sollversteuerung)."]
[]
[{"$nulls":29}," vereinnahmten Entgelten. Es wird hiermit die Istversteuerung beantragt, weil"]
[]
[{"$nulls":31}," voraussichtlich nicht mehr als 500.000 EUR betragen wird."]
[]
[{"$nulls":31}," Bestandsaufnahmen regelmäßig Abschlüsse zu machen, nach § 148 AO"]
[]
[{"$nulls":5},"6.7 Durchschnittssatz für Vorsteuern"]
[{"$nulls":5},"(Durchschnittssatz für Vorsteuern nach § 15 UStG) in Anspruch genommen.",{"$nulls":51}," Nein",{"$nulls":7}," Ja"]
[]
[{"$nulls":5},"6.8 Umsatzsteuer-Identifikationsnummer"]
[{"$nulls":7}," Es wird für die Teilnahme am innergemeinschaftlichen Waren- und Dienstleistungsverkehr eine USt-IdNr. benötigt."]
[]
[{"$nulls":7}," Hinweis: Bei Vorliegen einer Organschaft ist die USt-IdNr. der Organgesellschaft vom Organträger zu beantragen."]
[]
[{"$nulls":7}," Zusatzangaben für juristische Personen,"]
[{"$nulls":7}," - die nicht Unternehmer sind,"]
[{"$nulls":7}," - die Gegenstände nicht für ihr Unternehmen erwerben:"]
[]
[{"$nulls":7}," Es wird eine USt-IdNr. beantragt, weil"]
[{"$nulls":9}," innergemeinschaftliche Erwerbe zu versteuern sind, da die Erwerbsschwelle von 12.500 EUR jährlich"]
[]
[{"$nulls":11}," voraussichtlich überschritten wird (§ 1a Abs. 3 UStG)."]
[]
[{"$nulls":11}," zwei Kalenderjahren verzichtet wird (§ 1a Abs. 4 UStG)."]
[]
[{"$nulls":9}," neue Fahrzeuge oder bestimmte verbrauchsteuerpflichtige Waren innergemeinschaftlich erworben werden (§ 1a Abs. 5 UStG)."]
[]
[{"$nulls":7}," Es wurde bereits für eine frühere Tätigkeit folgende USt-IdNr. vergeben:"]
[]
[{"$nulls":7}," USt-IdNr.",{"$nulls":31}," Vergabedatum:"]
[]
[{"$nulls":5},"6.9 Steuerschuldnerschaft des Leistungsempfängers bei Bau- und/oder Gebäudereinigungsleistungen"]
[]
[{"$nulls":7}," Es wird die Erteilung eines Nachweises zur Steuerschuldnerschaft des Leistungsempfängers bei Bau- und/oder Gebäude-"]
[]
[{"$nulls":9}," Der Umfang der ausgeführten Bauleistungen i. S. des § 13b Abs. 2 Nr. 4 UStG beträgt voraussichtlich mehr als"]
[]
[{"$nulls":9}," Der Umfang der ausgeführten Gebäudereinigungsleistungen i. S. des § 13b Abs. 2 Nr. 8 UStG beträgt voraussichtlich"]
[]
[{"$nulls":5}," Hinweis: Die Voraussetzungen zur Erteilung der Bescheinigung sind in geeigneter Weise in einer Anlage glaubhaft zu machen."]
[]
[{"$nulls":5},"6.10 Besonderes Besteuerungsverfahren „Mini-one-stop-shop“"]
[{"$nulls":5},"Nur bei Ausführung von Telekommunikationsleistungen, Rundfunk- und Fernsehdienstleistungen oder auf elektronischem Weg"]
[{"$nulls":5},"erbrachten sonstigen Leistungen durch einen in einem anderen EU-Mitgliedstaat ansässigen Unternehmer an einen im Inland"]
[{"$nulls":5},"ansässigen Nichtunternehmer:"]
[]
[{"$nulls":7}," Das besondere Besteuerungsverfahren („Mini-one-stop-shop“) wird in Anspruch genommen. Die entsprechenden Umsätze"]
[]
[]
[{"$nulls":5},"7. Freistellungsbescheinigung gemäß § 48b Einkommensteuergesetz (EStG)",{"$nulls":52}," (\"Bauabzugsteuer\")"]
[]
[{"$nulls":5},"Das Merkblatt zum Steuerabzug bei Bauleistungen steht Ihnen im Internet unter www.bzst.de zum Download zur Verfügung."]
[{"$nulls":5},"Sie können es aber auch bei Ihrem Finanzamt erhalten."]
[]
[{"$nulls":7}," Es wird die Erteilung einer Bescheinigung zur Freistellung vom Steuerabzug bei Bauleistungen gemäß § 48b EStG beantragt."]
[]
[]
[{"$nulls":5},"Hinweis:",{"$nulls":5},"Die mit diesem Fragebogen angeforderten Daten werden aufgrund der §§ 85, 88, 90, 93 und 97 AO erhoben."]
[]
[]
[]
[]
[]
[]
[{"$nulls":5},"Ort, Datum",{"$nulls":31},"Unterschrift(en) gesetzliche(r) Vertreter(in)"]
[{"$nulls":37},"bzw. dessen / deren Vertreter(in) oder des/der Bevollmächtigten"]
[{"$nulls":5},"       2016FsEVER105",{"$nulls":43},"2016FsEVER105        "]

{"sheet":"Seite 6","index":5,"n_rows":77,"n_cols":49,"rows_kept":77,"merged":[[2,3,2,73],[6,4,6,13],[6,14,6,38],[9,4,9,11],[9,12,9,13],[9,14,9,45],[9,46,9,47],[9,48,9,72],[11,12,11,13],[11,14,11,45],[11,46,11,47],[11,48,11,72],[13,12,13,13],[13,14,13,45],[13,46,13,47],[13,48,13,72],[15,12,15,13],[15,14,15,45],[17,12,17,13],[17,15,17,71],[22,4,22,38],[25,6,25,38],[26,6,26,38],[27,6,27,38],[76,4,76,28],[76,48,76,72]]}
[]
[]
[{"$nulls":3},""]
[]
[]
[]
[{"$nulls":4},"Steuernummer",{"$nulls":9},{"$f":"IF(ZSteuernummer=\"\",\"\",ZSteuernummer)","v":""}]
[]
[]
[{"$nulls":4},"Anlagen:",{"$nulls":9},"    Satzung, Statut, Verfassung o. Ä. (Tz. 1.2)",{"$nulls":33},"    Empfangsvollmacht (Tz. 1.5)"]
[]
[{"$nulls":14},"    mit Liste der Vorstandsmitglieder (Tz. 1.2)",{"$nulls":33},"    SEPA-Lastschriftverfahren (Tz. 1.6)"]
[]
[{"$nulls":14},"    Protokoll der Gründungsversammlung (Tz. 1.2)",{"$nulls":33},"    Liste der Organgesellschaften (Tz. 3)"]
[]
[{"$nulls":14},"    Eintragungsnachricht des Amtsgerichtes (Tz. 1.2)"]
[]
[]
[]
[]
[]
[]
[{"$nulls":4},"  Finanzamt"]
{"$rows_empty":53}
[{"$nulls":4},"       2016FsEVER106",{"$nulls":43},"2016FsEVER106        "]

{"sheet":"Attribute","index":6,"n_rows":6,"n_cols":3,"rows_kept":6,"hidden":true}
["KAW-Variable","Wert","Bezeichnung"]
["KAW020001",{"$f":"IF(Mandantennummer=\"\",\"\",Mandantennummer)","v":""},"Nummer"]
["KAW010101",{"$f":"IF(FirstRun=\"\",\"\",YEAR(FirstRun))","v":2017},"Jahr"]
["KAW010102",{"$f":"IF(FirstRun=\"\",\"\",MONTH(FirstRun))","v":3},"Monat"]
["KAW010103","Fragebogen - Gründung Körperschaft privaten Rechts","Beschreibung"]
["KAW010105","Fragebogen, Gründung Körperschaft privaten Rechts","Stichworte"]

{"sheet":"Drucken","index":7,"n_rows":7,"n_cols":12,"rows_kept":7,"hidden":true}
["Sheetname","Header","Caption","Checked","Druck","Linebreak","WithBlankSheet","BlankSheetName","Seiten","Drucker","BeraterMandant","Duplex"]
["Seite 1","Header",null,"true",false,{"$nulls":3},1,null,true,true]
["Seite 2","Header2",null,"true",false,{"$nulls":3},1]
["Seite 3","Header3",null,"true",true,{"$nulls":3},1]
["Seite 4","Header4",null,"true",false,{"$nulls":3},1]
["Seite 5","Header5",null,"true",false,{"$nulls":3},1]
["Seite 6","Header6",null,"true",false,{"$nulls":3},1]

{"sheet":"Eintragung","index":8,"n_rows":121,"n_cols":28,"rows_kept":121,"hidden":true}
["Art","Person","Betrieb","VF","Quelle / Ziel","Wert","VF","Wert 1","Wert 2","Wert 3","Wert 4","Wert 5","Wert 6","Wert 7","Wert 8","Wert 9","Wert 10",null,"Werte 1-5","Werte 6-10","Werte 1-5","Werte 6-10","Werte 1-5","Werte 6-10","Werte 1-5","Werte 6-10","Werte 1-5","Werte 6-10"]
["ZMSD",null,"$Mandant.Nummer",null,"Mandantennummer"]
["ZMSD",null,"$Betrieb.Hauptfinanzamt.Info.Bezeichnung1",null,"FaName",""]
["ZMSD",null,"$Betrieb.Hauptfinanzamt.Info.Korrespondenz.Strasse",null,"FaStrasse",""]
["ZMSD",null,"$Betrieb.Hauptfinanzamt.Info.Korrespondenz.PLZ",null,"FaPLZStrasse",""]
["ZMSD",null,"$Betrieb.Hauptfinanzamt.Info.Korrespondenz.Ort",null,"FaOrtStrasse",""]
["ZMSD",null,"$Betrieb.Hauptfinanzamt.Info.Korrespondenz.Postfach",null,"FaPostfach",""]
["ZMSD",null,"$Betrieb.Hauptfinanzamt.Steuernummer",null,"FaSteuernummer",""]
["ZMSD",null,"$Betrieb.Unternehmensbezeichnung",null,"KName",""]
["ZMSD",null,"$Betrieb.Hauptstrasse.Strasse",null,"KStrasse",""]
["ZMSD",null,"$Betrieb.Hauptstrasse.PLZ",null,"KPLZStrasse",""]
["ZMSD",null,"$Betrieb.Hauptstrasse.Ort",null,"KOrtStrasse",""]
["ZMSD",null,"$Betrieb.Hauptpostfach.Postfach",null,"KPostfach",""]
["ZMSD",null,"$Betrieb.Hauptpostfach.PLZ",null,"KPLZPostfach",""]
["ZMSD",null,"$Betrieb.Hauptpostfach.Ort",null,"KOrtPostfach"]
["ZMSD",null,"$Betrieb.Geschaeftsleitung.Strasse",null,"KGlStrasse"]
["ZMSD",null,"$Betrieb.Geschaeftsleitung.PLZ",null,"KGlPLZ"]
["ZMSD",null,"$Betrieb.Geschaeftsleitung.Ort",null,"KGlOrt"]
["ZMSD",null,"$Betrieb.Haupttelefon.Nummer",null,"KTelefon",""]
["ZMSD",null,"$Betrieb.Haupttelefax.Nummer",null,"KFax",""]
["ZMSD",null,"$Betrieb.Hauptemail.Nummer",null,"KEmail",""]
["ZMSD",null,"$Betrieb.Kommunikation[].Medium",10,"KKomm","",null,"","","","","","","","","",""]
["ZMSD",null,"$Betrieb.Kommunikation[].Nummer",10,"KKommNummer","",null,"","","","","","","","","",""]
["ZMSD",null,"$Betriebsstaette[].Unternehmen.Hauptstrasse.Strasse",5,"BsStrasse","","0","","","","","","","","","",""]
["ZMSD",null,"$Betriebsstaette[].Unternehmen.Hauptstrasse.PLZ",5,"BsPLZStrasse","",null,"","","","","","","","","",""]
["ZMSD",null,"$Betriebsstaette[].Unternehmen.Hauptstrasse.Ort",5,"BsOrtStrasse","",null,"","","","","","","","","",""]
["ZMSD",null,"$Betrieb.Unternehmensgegenstand",null,"KZweck",""]
["ZMSD",null,"$GesetzlicherVertreterUnternehmen.TitelAkademischerGrad",null,"GesVertrTitel",""]
["ZMSD",null,"$GesetzlicherVertreterUnternehmen.Vorname",null,"GesVertrVorname",""]
["ZMSD",null,"$GesetzlicherVertreterUnternehmen.Nachname",null,"GesVertrNachname",""]
["ZMSD",null,"$GesetzlicherVertreterUnternehmen.Unternehmensbezeichnung",null,"GesVertrUnt"]
["ZMSD",null,"$GesetzlicherVertreterUnternehmen.Hauptstrasse.Strasse",null,"GesVertrStrasse",""]
["ZMSD",null,"$GesetzlicherVertreterUnternehmen.Hauptstrasse.PLZ",null,"GesVertrPLZ",""]
["ZMSD",null,"$GesetzlicherVertreterUnternehmen.Hauptstrasse.Ort",null,"GesVertrOrt",""]
["ZMSD",null,"$GesetzlicherVertreterUnternehmen.Hauptpostfach.PLZ",null,"GesVertrPLZPostfach"]
["ZMSD",null,"$GesetzlicherVertreterUnternehmen.Hauptpostfach.Ort",null,"GesVertrOrtPostfach"]
["ZMSD",null,"$GesetzlicherVertreterUnternehmen.Hauptpostfach.Postfach",null,"GesVertrPostfach"]
["ZMSD",null,"$GesetzlicherVertreterUnternehmen.PersoenlicheDaten.Geburt.Datum",null,"GesVertrGeb"]
["ZMSD",null,"$GesetzlicherVertreterUnternehmen.PersoenlicheDaten.Identifikationsnummer",null,"GesVertrId"]
["ZMSD",null,"$GesetzlicherVertreterUnternehmen.Haupttelefon.Nummer",null,"GesVertrTelefon",""]
["ZMSD",null,"$GesetzlicherVertreterUnternehmen.Haupttelefax.Nummer",null,"GesVertrFax",""]
["ZMSD",null,"$GesetzlicherVertreterUnternehmen.Hauptemail.Nummer",null,"GesVertrEmail",""]
["ZMSD",null,"$GesetzlicherVertreterUnternehmen.Kommunikation[].Medium","10","GesVertrKomm","",null,"","","","","","","","","",""]
["ZMSD",null,"$GesetzlicherVertreterUnternehmen.Kommunikation[].Nummer","10","GesVertrKommNummer","",null,"","","","","","","","","",""]
["ZMSD",null,"$EmpfangsbevollmaechtigerUnternehmen.TitelAkademischerGrad",null,"EmpfTitel",""]
["ZMSD",null,"$EmpfangsbevollmaechtigerUnternehmen.Vorname",null,"EmpfVorname",""]
["ZMSD",null,"$EmpfangsbevollmaechtigerUnternehmen.Nachname",null,"EmpfNachname",""]
["ZMSD",null,"$EmpfangsbevollmaechtigerUnternehmen.Unternehmensbezeichnung",null,"EmpfUnt"]
["ZMSD",null,"$EmpfangsbevollmaechtigerUnternehmen.Hauptstrasse.Strasse",null,"EmpfStrasse",""]
["ZMSD",null,"$EmpfangsbevollmaechtigerUnternehmen.Hauptstrasse.PLZ",null,"EmpfPLZ",""]
["ZMSD",null,"$EmpfangsbevollmaechtigerUnternehmen.Hauptstrasse.Ort",null,"EmpfOrt",""]
["ZMSD",null,"$EmpfangsbevollmaechtigerUnternehmen.Haupttelefon.Nummer",null,"EmpfTelefon",""]
["ZMSD",null,"$EmpfangsbevollmaechtigerUnternehmen.Haupttelefax.Nummer",null,"EmpfFax",""]
["ZMSD",null,"$EmpfangsbevollmaechtigerUnternehmen.Hauptemail.Nummer",null,"EmpfEmail",""]
["ZMSD",null,"$EmpfangsbevollmaechtigerUnternehmen.Kommunikation[].Medium","10","EmpfKomm","",null,"","","","","","","","","",""]
["ZMSD",null,"$EmpfangsbevollmaechtigerUnternehmen.Kommunikation[].Nummer","10","EmpfKommNummer","",null,"","","","","","","","","",""]
["ZMSD",null,"$Betrieb.Bank[].Bankkonto.Info.Bezeichnung1","30","KBankName","","0","","","","","","","","","",""]
["ZMSD",null,"$Betrieb.Bank[].Bankkonto.IBAN","30","KBankIBAN"]
["ZMSD",null,"$Betrieb.Bank[].Bankkonto.Info.BIC","30","KBankBIC"]
["ZMSD",null,"$Betrieb.Bank[].AbwKontoinhaber","30","KAbwKontoinhaber","",null,"","","","","","","","","",""]
["ZMSD",null,"$Betrieb.Bank[].Bankkonto.Info.Hauptstrasse.Ort","30","KBankOrt","",null,"","","","","","","","","",""]
["ZMSD",null,"$Betrieb.Hauptbank.Bankkonto.IBAN",null,"KBankHauptIBAN",null,{"$f":"IF(KBankHauptIBAN<>\"\",IF(ISNA(MATCH(KBankHauptIBAN,H58:IV58,0)),0,MATCH(KBankHauptIBAN,H58:IV58,0)),0)","v":0}]
["ZMSD",null,"$Betrieb.BetrieblicheDaten.Gruendungsdatum",null,"KErrichtung",""]
["ZMSD",null,"$Betrieb.BetrieblicheDaten.Register.EintragAm",null,"KEintragung",""]
["ZMSD",null,"$Betrieb.BetrieblicheDaten.Register.Gericht",null,"KRegisterGericht",""]
["ZMSD",null,"$Betrieb.BetrieblicheDaten.Register.Gerichtsnummer",null,"KRegisterNummer","",null,"Länge=8?","Beginn abweichend?","Ende abweichend?","Dauer 12 Monate?","Innerhalb Kalenderjahr?"]
["ZMSD",null,"$Betrieb.BetrieblicheDaten.Wirtschaftsjahr",null,"KAbweichendWJ",null,null,{"$f":"IF(LEN(KAbweichendWJ)=8,TRUE,FALSE)","v":false},{"$f":"IF(LEFT(KAbweichendWJ,4)=\"0101\",FALSE,TRUE)","v":true},{"$f":"IF(RIGHT(KAbweichendWJ,4)=\"3112\",FALSE,TRUE)","v":true},{"$f":"IF(H67,IF(OR(DATE(YEAR(TODAY()),VALUE(MID(KAbweichendWJ,7,2)),VALUE(MID(KAbweichendWJ,5,2)))+1=DATE(YEAR(TODAY()),VALUE(MID(KAbweichendWJ,3,2)),VALUE(MID(KAbweichendWJ,1,2))),NOT(OR(I67,J67))),TRUE,FALSE),TRUE)","v":true},{"$f":"IF(H67,IF(VALUE(MID(KAbweichendWJ,3,2))>VALUE(MID(KAbweichendWJ,7,2)),FALSE,TRUE),TRUE)","v":true}]
["ZMSD",null,"$Betrieb.Umsatzsteuer.UmsatzsteuerId",null,"UStId"]
["COPY",{"$nulls":3},"ZFaName1",{"$f":"IF(FaName=\"\",\"\",FaName)","v":""}]
["COPY",{"$nulls":3},"ZFaName2",{"$f":"IF(FaName=\"\",\"\",FaName)","v":""}]
["COPY",{"$nulls":3},"ZFaAnschrift",{"$f":"IF(FaPostfach=\"\",IF(FaStrasse=\"\",\"\",FaStrasse),\"Postfach \"& FaPostfach)","v":""}]
["COPY",{"$nulls":3},"ZFaPLZOrt",{"$f":"IF(FaPLZStrasse=\"\",\"\",FaPLZStrasse&\" \")&IF(FaOrtStrasse=\"\",\"\",FaOrtStrasse)","v":""}]
["COPY",{"$nulls":3},"ZSteuernummer",{"$f":"IF(FaSteuernummer=\"\",\"\",FaSteuernummer)","v":""}]
["COPY",{"$nulls":3},"ZKName",{"$f":"IF(KName=\"\",\"\",KName)","v":""}]
["COPY",{"$nulls":3},"ZKStrasse",{"$f":"IF(KStrasse=\"\",\"\",KStrasse)","v":""}]
["COPY",{"$nulls":3},"ZKPLZ",{"$f":"IF(KPLZStrasse=\"\",\"\",KPLZStrasse)","v":""}]
["COPY",{"$nulls":3},"ZKOrt",{"$f":"IF(KOrtStrasse=\"\",\"\",KOrtStrasse)","v":""}]
["COPY",{"$nulls":3},"ZKPLZPostfach",{"$f":"IF(KPLZPostfach=\"\",\"\",KPLZPostfach)","v":""}]
["COPY",{"$nulls":3},"ZKPostfach",{"$f":"IF(KPostfach=\"\",\"\",KPostfach)","v":""}]
["COPY",{"$nulls":3},"ZKOrtPostfach",{"$f":"IF(KOrtPostfach=\"\",\"\",KOrtPostfach)","v":""}]
["COPY",{"$nulls":3},"ZKGlStrasse",{"$f":"IF(KGlStrasse=\"\",\"\",KGlStrasse)","v":""}]
["COPY",{"$nulls":3},"ZKGlPLZ",{"$f":"IF(KGlPLZ=\"\",\"\",KGlPLZ)","v":""}]
["COPY",{"$nulls":3},"ZKGlOrt",{"$f":"IF(KGlOrt=\"\",\"\",KGlOrt)","v":""}]
["COPY",{"$nulls":3},"ZKTelefon",{"$f":"IF(KTelefon=\"\",\"\",KTelefon)","v":""}]
["COPY",{"$nulls":3},"ZKEmail",{"$f":"IF(KEmail=\"\",\"\",KEmail)","v":""}]
["COPY",{"$nulls":3},"ZKInternet",{"$f":"IF(ISNA(HLOOKUP(\"3\",H22:Q23,2,FALSE)),\"\",HLOOKUP(\"3\",H22:Q23,2,FALSE))","v":""}]
["COPY",{"$nulls":3},"ZKErrichtung",{"$f":"IF(KErrichtung=\"\",\"\",Datumkonvert(KErrichtung))","v":""}]
["COPY",{"$nulls":3},"ZKEintragung",{"$f":"IF(KEintragung=\"\",\"\",Datumkonvert(KEintragung))","v":""}]
["COPY",{"$nulls":3},"ZKAmtsgericht",{"$f":"IF(KRegisterGericht=\"\",\"\",KRegisterGericht)","v":""}]
["COPY",{"$nulls":3},"ZKRegNr",{"$f":"IF(KRegisterNummer=\"\",\"\",KRegisterNummer)","v":""}]
["COPY",{"$nulls":3},"ZGesVertrName",{"$f":"IF(GesVertrUnt=\"\",IF(GesVertrTitel=\"\",\"\",GesVertrTitel & \" \") & IF(GesVertrNachname=\"\",\"\",GesVertrNachname),GesVertrUnt)","v":""}]
["COPY",{"$nulls":3},"ZGesVertrVorname",{"$f":" IF(GesVertrVorname=\"\",\"\",GesVertrVorname)","v":""}]
["COPY",{"$nulls":3},"ZGesVertrStrasse",{"$f":"IF(GesVertrStrasse=\"\",\"\",GesVertrStrasse)","v":""}]
["COPY",{"$nulls":3},"ZGesVertrPLZ",{"$f":"IF(GesVertrPLZ=\"\",\"\",GesVertrPLZ)","v":""}]
["COPY",{"$nulls":3},"ZGesVertrOrt",{"$f":"IF(GesVertrOrt=\"\",\"\",GesVertrOrt)","v":""}]
["COPY",{"$nulls":3},"ZGesVertrPLZPostfach",{"$f":"IF(GesVertrPLZPostfach=\"\",\"\",GesVertrPLZPostfach)","v":""}]
["COPY",{"$nulls":3},"ZGesVertrOrtPostfach",{"$f":"IF(GesVertrOrtPostfach=\"\",\"\",GesVertrOrtPostfach)","v":""}]
["COPY",{"$nulls":3},"ZGesVertrPostfach",{"$f":"IF(GesVertrPostfach=\"\",\"\",GesVertrPostfach)","v":""}]
["COPY",{"$nulls":3},"ZGesVertrGeb",{"$f":"Datumkonvert(GesVertrGeb)","v":""}]
["COPY",{"$nulls":3},"ZGesVertrId",{"$f":"IF(GesVertrId=\"\",\"\",GesVertrId)","v":""}]
["COPY",{"$nulls":3},"ZGesVertrTel",{"$f":"IF(GesVertrTelefon=\"\",\"\",GesVertrTelefon)","v":""}]
["COPY",{"$nulls":3},"ZGesVertrEmail",{"$f":"IF(GesVertrEmail=\"\",\"\",GesVertrEmail)","v":""}]
["COPY",{"$nulls":3},"ZGesVertrInternet",{"$f":"IF(ISNA(HLOOKUP(\"3\",H43:Q44,2,FALSE)),\"\",HLOOKUP(\"3\",H43:Q44,2,FALSE))","v":""}]
["COPY",{"$nulls":3},"ZEmpfBezeichnung",{"$f":"IF(EmpfUnt=\"\",\"\",EmpfUnt)","v":""}]
["COPY",{"$nulls":3},"ZEmpfName",{"$f":"IF(EmpfTitel=\"\",\"\",EmpfTitel & \" \") & IF(EmpfNachname=\"\",\"\",EmpfNachname)","v":""}]
["COPY",{"$nulls":3},"ZEmpfVorname",{"$f":"IF(EmpfVorname=\"\",\"\",EmpfVorname)","v":""}]
["COPY",{"$nulls":3},"ZEmpfStrasse",{"$f":"IF((EmpfStrasse&EmpfPLZ&EmpfOrt)<>\"\",IF(EmpfStrasse=\"\",EmpfPLZ&\" \"&EmpfOrt,EmpfStrasse&\", \"&EmpfPLZ&\" \"&EmpfOrt),\"\")","v":""}]
["COPY",{"$nulls":3},"ZEmpfPLZ",{"$f":"IF((EmpfStrasse&EmpfPLZ&EmpfOrt)<>\"\",IF(EmpfStrasse=\"\",EmpfPLZ&\" \"&EmpfOrt,EmpfStrasse&\", \"&EmpfPLZ&\" \"&EmpfOrt),\"\")","v":""}]
["COPY",{"$nulls":3},"ZEmpfOrt",{"$f":"IF((EmpfStrasse&EmpfPLZ&EmpfOrt)<>\"\",IF(EmpfStrasse=\"\",EmpfPLZ&\" \"&EmpfOrt,EmpfStrasse&\", \"&EmpfPLZ&\" \"&EmpfOrt),\"\")","v":""}]
["COPY",{"$nulls":3},"ZEmpfTel",{"$f":"IF(EmpfTelefon=\"\",\"\",EmpfTelefon)","v":""}]
["COPY",{"$nulls":3},"ZEmpfEmail",{"$f":"IF(EmpfEmail=\"\",\"\",EmpfEmail)","v":""}]
["COPY",{"$nulls":3},"ZBankIBAN",{"$f":"IF(KBankIBAN=\"\",\"\",KBankIBAN)","v":""}]
["COPY",{"$nulls":3},"ZBankBIC",{"$f":"IF(KBankBIC=\"\",\"\",KBankBIC)","v":""}]
["COPY",{"$nulls":3},"ZBankNameOrt",{"$f":"IF(KBankName=\"\",\"\",KBankName)&IF(KBankOrt=\"\",\"\",\", \"&KBankOrt)","v":""}]
["COPY",{"$nulls":3},"ZBankAbweicher",{"$f":"IF(KAbwKontoinhaber=\"\",\"\",KAbwKontoinhaber)","v":""}]
["COPY",{"$nulls":3},"ZKGegenstand1",{"$f":"IF(KZweck=\"\",\"\",KZweck)","v":""}]
["COPY",{"$nulls":3},"ZKGegenstand2",{"$f":"\"\"","v":""}]
["COPY",{"$nulls":3},"ZBeginnWj",{"$f":"IF(AND(H67,I67,J67,K67),MID(KAbweichendWJ,1,2) & \".\" & MID(KAbweichendWJ,3,2) & \".\" & IF(L67,YEAR(NOW()),YEAR(NOW())-1),\"\")","v":""}]
["COPY",{"$nulls":3},"ZEndeWj",{"$f":"IF(AND(H67,I67,J67,K67),MID(KAbweichendWJ,5,2) & \".\" & MID(KAbweichendWJ,7,2) & \".\" & YEAR(NOW()),\"\")","v":""}]
["COPY",{"$nulls":3},"ZUStId",{"$f":"IF(UStId=\"\",\"\",UStId)","v":""}]
["COPY",{"$nulls":3},"ZOrtDatum",{"$f":"IF(KOrtStrasse=\"\",\"\",KOrtStrasse&\", \")&TEXT(TODAY(),\"TT.MM.JJJJ\")","v":"23.03.2017"}]

{"sheet":"Kanzleidaten","index":9,"n_rows":36,"n_cols":3,"rows_kept":36,"hidden":true}
["Aktion","Quelle / Ziel","Wert"]
["KANZLEI","KDBezeichnung1"]
["KANZLEI","KDBezeichnung2"]
["KANZLEI","KDStrasse_alt"]
["KANZLEI","KDStrasse"]
["KANZLEI","KDAdresszusatz"]
["KANZLEI","KDHausnummer"]
["KANZLEI","KDHausnummerZusatz"]
["KANZLEI","KDPLZ"]
["KANZLEI","KDOrt"]
["KANZLEI","KDTel"]
["KANZLEI","KDFax"]
["KANZLEI","KDMobil"]
["KANZLEI","KDEmail",""]
["KANZLEI","KDInternet",""]
["KANZLEI","KDBank",""]
["KANZLEI","KDBLZ",""]
["KANZLEI","KDKontoNr",""]
["CopyStB","ZStBBezeichnung",{"$f":"IF(KDBezeichnung1=\"\",\"\",KDBezeichnung1 & \" \")&IF(KDBezeichnung2=\"\",\"\",KDBezeichnung2)","v":""}]
["CopyStB","ZStBStrasse",{"$f":"IF(KDStrasse=\"\",IF(KDStrasse_alt=\"\",\"\",KDStrasse_alt),KDStrasse)","v":""}]
["CopyStB","ZStBHausnummer",{"$f":"IF(KDHausnummer=\"\",\"\",KDHausnummer)","v":""}]
["CopyStB","ZStBHausnummerZusatz",{"$f":"IF(KDHausnummerZusatz=\"\",\"\",KDHausnummerZusatz)","v":""}]
["CopyStB","ZStBAdressergaenzung",{"$f":"IF(KDAdresszusatz=\"\",\"\",KDAdresszusatz)","v":""}]
["CopyStB","ZStBPLZ",{"$f":"IF(KDPLZ=\"\",\"\",KDPLZ)","v":""}]
["CopyStB","ZStBOrt",{"$f":"IF(KDOrt=\"\",\"\",KDOrt)","v":""}]
["CopyStB","ZStBTel",{"$f":"IF(KDTel=\"\",IF(KDMobil=\"\",\"\",KDMobil),KDTel)","v":""}]
["CopyStB","ZStBEmail",{"$f":"IF(KDEmail=\"\",\"\",KDEmail)","v":""}]
["CopyEmpf","ZEmpfBezeichnung",{"$f":"IF(KDBezeichnung1=\"\",\"\",KDBezeichnung1 & \" \")&IF(KDBezeichnung2=\"\",\"\",KDBezeichnung2)","v":""}]
["CopyEmpf","ZEmpfStrasse",{"$f":"IF(KDStrasse=\"\",IF(KDStrasse_alt=\"\",\"\",KDStrasse_alt),KDStrasse)","v":""}]
["CopyEmpf","ZEmpfHausnummer",{"$f":"IF(KDHausnummer=\"\",\"\",KDHausnummer)","v":""}]
["CopyEmpf","ZEmpfHausnummerZusatz",{"$f":"IF(KDHausnummerZusatz=\"\",\"\",KDHausnummerZusatz)","v":""}]
["CopyEmpf","ZEmpfAdressergaenzung",{"$f":"IF(KDAdresszusatz=\"\",\"\",KDAdresszusatz)","v":""}]
["CopyEmpf","ZEmpfPLZ",{"$f":"IF(KDPLZ=\"\",\"\",KDPLZ)","v":""}]
["CopyEmpf","ZEmpfOrt",{"$f":"IF(KDOrt=\"\",\"\",KDOrt)","v":""}]
["CopyEmpf","ZEmpfTel",{"$f":"IF(KDTel=\"\",IF(KDMobil=\"\",\"\",KDMobil),KDTel)","v":""}]
["CopyEmpf","ZEmpfEmail",{"$f":"IF(KDEmail=\"\",\"\",KDEmail)","v":""}]

{"sheet":"Stammdaten","index":10,"n_rows":8,"n_cols":2,"rows_kept":8,"hidden":true}
["Stammdaten"]
["ToolName","Neuanlage eines Mandats"]
["ToolVersion","V.4.2"]
["ToolDatum","(13.12.2016)"]
["ToolInfo",{"$f":"ToolName & \" \" & ToolVersion & \" \" & ToolDatum","v":"Neuanlage eines Mandats V.4.2 (13.12.2016)"}]
["Eingabekontrolle",true]
["Header",{"$f":"IF(AND(ZKName=\"\",ZSteuernummer=\"\"),\"\",IF(ZKName=\"\",ZSteuernummer,IF(ZSteuernummer=\"\",ZKName,ZKName & \" / \" & ZSteuernummer)))","v":""}]
["FirstRun","23.03.2017"]